bitfinex-derivatives/quotes_ETHF0:USTF0_20260201
["timestamp","ask_amount","ask_price","bid_price","bid_amount"]
[1769965321714,0.21689,2307.5,2306.2,7.35190568]
[1769965321914,0.21689,2307.5,2306.4,7.35190568]
[1769965322411,7.27946556,2309.7,2306.6,7.35190568]
[1769965322616,0.2168,2308.4,2306.6,7.35190568]
[1769965322813,0.2168,2308.4,2306.8,7.35190568]
[1769965323221,0.2168,2308.4,2307.0,7.35190568]
[1769965323411,0.00362242,2308.4,2307.0,7.35190568]
[1769965323617,7.27946556,2309.1,2307.2,7.35190568]
[1769965323818,7.27946556,2309.5,2307.4,7.35190568]
[1769965324014,0.21674,2309.1,2307.6,7.35190568]
[1769965324214,0.21669,2309.6,2307.6,7.35190568]
[1769965324415,0.21669,2309.6,2307.8,7.35190568]
[1769965324616,0.21663,2310.2,2307.8,7.35570105]
[1769965324921,0.21665,2310.0,2308.0,7.35190568]
[1769965325318,0.2166,2310.6,2308.2,7.35190568]
[1769965325516,7.49606556,2310.6,2308.4,7.35190568]
[1769965325722,0.21665,2310.0,2308.6,7.35190568]
[1769965326317,7.27946556,2310.7,2308.8,7.35190568]
[1769965326832,7.27946556,2310.2,2309.0,7.35190568]
[1769965327018,0.21667,2309.8,2309.1,2.544]
[1769965327319,7.37886487,2309.6,2309.1,9.97167206]
[1769965327521,7.16217487,2309.6,2309.1,8.4e-07]
[1769965327817,7.16217487,2309.6,2308.7,7.755]
[1769965328018,7.16217487,2309.6,2308.7,15.68700122]
[1769965328223,7.16217487,2309.3,2308.0,3.903]
[1769965328417,7.16217487,2309.3,2308.1,7.409]
[1769965328623,7.16217487,2309.3,2308.1,14.89653122]
[1769965328824,7.16217487,2309.1,2307.8,0.00379537]
[1769965329015,0.21682,2308.3,2307.8,0.00379537]
[1769965329420,7.37899487,2308.3,2307.8,0.00379537]
[1769965330821,0.21682,2308.3,2307.8,7.03725659]
[1769965331024,7.16217487,2309.2,2307.8,14.11364981]
[1769965331323,0.21677,2308.7,2307.8,14.11364981]
[1769965331519,0.21677,2308.7,2307.9,7.07639322]
[1769965331724,7.16217487,2309.4,2307.9,7.07639322]
[1769965331923,0.21672,2309.3,2308.1,7.07639322]
[1769965332217,0.21672,2309.3,2308.0,7.03346122]
[1769965332218,7.16217487,2309.1,2308.0,7.03346122]
[1769965332419,0.2168,2308.5,2308.0,13.66526444]
[1769965332626,7.37891487,2309.1,2308.0,13.66526444]
[1769965333125,0.21676,2308.9,2308.0,13.66526444]
[1769965334216,0.21676,2308.9,2308.1,6.58887122]
[1769965334416,0.21676,2308.9,2307.4,3.902]
[1769965334417,7.16217487,2308.4,2307.4,3.902]
[1769965334620,0.21681,2308.3,2307.5,13.84464964]
[1769965334822,7.37898487,2308.3,2307.5,13.84464964]
[1769965335020,0.21681,2308.3,2307.5,13.84464964]
[1769965335226,0.21683,2308.1,2307.3,7.07639322]
[1769965335426,7.16217487,2308.5,2307.4,13.11004286]
[1769965336329,7.16597024,2308.9,2307.5,7.07639322]
[1769965337225,0.2168,2308.4,2307.5,7.07639322]
[1769965338634,0.21677,2308.8,2307.7,7.07639322]
[1769965339128,0.21672,2309.4,2307.9,7.07639322]
[1769965339327,0.21672,2309.3,2307.9,7.07639322]
[1769965339630,0.21672,2309.3,2308.1,7.07639322]
[1769965339831,0.21672,2309.3,2308.3,7.07639322]
[1769965340129,0.21673,2309.2,2308.3,7.07639322]
[1769965340323,0.21673,2309.2,2308.5,7.07639322]
[1769965340526,7.16217487,2309.7,2308.5,7.07639322]
[1769965340725,7.16217487,2309.7,2308.6,6.03364964]
[1769965341229,7.16217487,2310.0,2308.7,7.07639322]
[1769965341423,0.21668,2309.7,2308.7,7.07639322]
[1769965341625,7.16217487,2310.1,2308.9,7.07639322]
[1769965341836,0.2167,2309.5,2308.9,7.07639322]
[1769965342027,0.2167,2309.5,2309.0,6.03364964]
[1769965342223,7.16217487,2309.9,2309.0,6.03925989]
[1769965342529,7.16217487,2309.7,2309.0,2.5e-07]
[1769965342828,0.21677,2308.8,2308.5,5.54752964]
[1769965343020,7.16217487,2309.1,2307.8,7.07639322]
[1769965343224,7.16217487,2308.1,2307.1,13.51624213]
[1769965343528,7.16217487,2307.8,2307.1,1.32334]
[1769965343833,7.16217487,2307.4,2306.0,7.07639322]
[1769965344020,0.21696,2306.7,2306.1,4.52846964]
[1769965344425,7.37909487,2307.2,2306.1,11.60486286]
[1769965344628,0.00398652,2307.4,2306.2,7.07639322]
[1769965344827,0.00398652,2307.4,2306.4,7.07639322]
[1769965345333,7.37900487,2308.1,2306.6,7.07639322]
[1769965345526,0.21685,2307.9,2306.6,7.07639322]
[1769965345826,0.21685,2307.9,2306.8,7.07639322]
[1769965346131,0.21685,2307.9,2307.0,7.07639322]
[1769965346527,0.21847373,2307.9,2307.1,4.08168964]
[1769965347329,0.21847373,2307.9,2307.2,4.886]
[1769965347627,0.21682,2308.2,2307.4,7.07639322]
[1769965347827,20.60645202,2309.5,2307.3,4.08168964]
[1769965347828,0.21685,2307.9,2307.3,4.08168964]
[1769965348734,7.37904487,2307.7,2306.9,3.902]
[1769965349133,7.37904487,2307.7,2306.9,7.54933964]
[1769965350027,0.21687,2307.7,2306.9,14.62573286]
[1769965350633,0.21681,2308.3,2307.0,7.07639322]
[1769965350831,7.37898487,2308.3,2307.0,7.07639322]
[1769965351133,0.21682,2308.2,2307.1,10.72373286]
[1769965351329,0.21682,2308.2,2307.2,7.07639322]
[1769965352225,7.16217487,2309.3,2307.4,7.07639322]
[1769965352728,7.16217487,2309.7,2307.6,7.07639322]
[1769965352931,0.21666,2309.9,2308.2,7.07639322]
[1769965353132,0.21666,2309.9,2308.4,7.07639322]
[1769965353529,0.2166,2310.5,2308.6,7.07639322]
[1769965353735,0.2166,2310.5,2308.8,7.07639322]
[1769965353935,0.2166,2310.5,2308.9,7.07639322]
[1769965354532,0.2166,2310.5,2308.9,9.61424213]
[1769965354734,0.2166,2310.5,2309.0,7.07639322]
[1769965356532,7.16217487,2310.7,2309.0,7.07639322]
[1769965356734,0.21665,2310.0,2309.1,10.56833964]
[1769965356931,7.16217487,2310.1,2309.1,3.64733964]
[1769965357433,7.16217487,2310.1,2309.1,2.73479964]
[1769965357936,0.21664,2310.1,2309.2,7.20524028]
[1769965358136,0.21669,2309.7,2309.2,10.70403]
[1769965358330,0.21669,2309.6,2308.8,7.20524028]
[1769965358638,7.04184102,2309.8,2308.9,2.27766964]
[1769965358937,7.04184102,2309.8,2308.7,6.959]
[1769965359132,7.04184102,2309.8,2308.8,1.14671964]
[1769965359330,7.04184102,2309.6,2308.6,8.35195992]
[1769965359927,7.04184102,2309.6,2308.6,1.14671964]
[1769965360135,7.04184102,2309.6,2308.6,0.67591964]
[1769965360331,7.04184102,2309.6,2308.6,0.22734964]
[1769965360536,7.04184102,2309.1,2308.2,0.00389469]
[1769965360738,7.04184102,2309.1,2308.2,0.23124433]
[1769965361737,7.04184102,2310.1,2308.2,7.43648461]
[1769965361936,0.21674,2309.1,2308.2,7.43648461]
[1769965362141,0.21675,2309.0,2308.2,7.43648461]
[1769965362439,7.09184102,2309.1,2308.2,0.23124433]
[1769965363244,0.21677,2308.8,2308.2,0.23124433]
[1769965364240,0.21677,2308.8,2308.3,0.22734964]
[1769965364843,0.05,2309.1,2308.2,6.85475742]
[1769965365035,6.4423968,2311.3,2309.3,4.84142148]
[1769965365240,0.13255025,2311.4,2309.9,4.19050148]
[1769965365440,0.13255025,2311.4,2309.9,4.19590673]
[1769965365644,6.99167054,2311.6,2309.9,4.19590673]
[1769965365840,0.21662,2310.4,2309.9,5.25e-06]
[1769965366044,0.21662,2310.4,2310.0,6.443]
[1769965366241,0.21662,2310.4,2309.5,4.19050148]
[1769965366242,7.20833054,2309.9,2309.5,8.698]
[1769965366440,7.20833054,2309.9,2308.7,4.19050148]
[1769965366640,11.62005522,2311.7,2308.8,6.443]
[1769965366641,4.3304,2309.7,2308.8,6.443]
[1769965366949,0.00387857,2309.7,2308.8,6.4461127]
[1769965367343,0.21663,2310.2,2308.9,4.19050148]
[1769965368344,0.21815668,2310.2,2308.9,4.19050148]
[1769965370646,0.21815668,2310.2,2309.1,4.29317935]
[1769965373555,11.32359722,2310.2,2309.1,4.29317935]
[1769965373761,0.2167,2309.5,2309.0,3.9]
[1769965374059,7.20837054,2309.5,2309.2,3.009]
[1769965374255,4.3304,2309.3,2309.2,2.05101632]
[1769965374460,4.3304,2309.3,2309.2,1.57570632]
[1769965374757,0.21671,2309.4,2309.0,3.9]
[1769965374955,0.4272873,2309.2,2309.0,8.292]
[1769965375354,0.4272873,2309.1,2309.0,8.292]
[1769965375555,0.21671,2309.4,2309.0,8.292]
[1769965375756,6.99167054,2309.8,2309.0,8.29645355]
[1769965377263,0.21671,2309.4,2309.0,8.29645355]
[1769965377757,7.20840054,2309.2,2308.3,4.31580887]
[1769965377957,7.20842054,2308.9,2308.4,3.9]
[1769965378155,7.20842054,2308.9,2308.4,9.255]
[1769965378851,7.20842054,2308.9,2308.4,9.26035556]
[1769965379263,0.2167,2309.5,2308.5,4.31580887]
[1769965380053,6.99167054,2310.1,2308.5,7.77181386]
[1769965380260,0.00152668,2310.2,2309.2,4.31950079]
[1769965380458,0.21665,2310.0,2309.1,4.31950079]
[1769965380659,0.21667,2309.9,2308.8,16.4053497]
[1769965380858,0.21667,2309.9,2308.9,4.31950079]
[1769965381262,0.21667,2309.9,2308.5,3.45600499]
[1769965381263,6.99167054,2309.6,2308.5,2.53784891]
[1769965381461,0.21673,2309.3,2308.7,3.9]
[1769965381762,0.21675,2309.0,2308.4,0.00535556]
[1769965381961,7.20842054,2309.0,2308.7,10.86227]
[1769965382164,7.20843054,2308.9,2308.4,0.00535556]
[1769965382463,7.20843054,2308.9,2308.5,7.624]
[1769965382464,0.21676,2308.9,2308.5,7.624]
[1769965382960,7.20844054,2308.8,2308.5,7.1431]
[1769965384155,6.99167054,2309.2,2308.5,7.1431]
[1769965384962,7.20842054,2309.0,2308.5,7.1431]
[1769965386367,6.99167054,2308.7,2307.5,2.53784891]
[1769965386566,6.99167054,2308.1,2307.4,3.9]
[1769965386768,6.99167054,2307.8,2307.4,3.9]
[1769965387470,7.21167843,2307.8,2307.4,0.00400071]
[1769965387666,7.26915416,2307.6,2306.4,2.53784891]
[1769965387862,7.48605416,2307.4,2306.5,8.753]
[1769965388566,0.2169,2307.3,2306.1,4.2509303]
[1769965388871,7.26915416,2307.2,2306.2,11.52082415]
[1769965390070,0.00314789,2307.8,2306.3,8.55116283]
[1769965390267,0.00314789,2307.8,2306.4,4.33905509]
[1769965391772,0.22000789,2307.8,2306.8,4.29933207]
[1769965391970,0.2169,2307.4,2306.4,4.29933207]
[1769965392175,0.2169,2307.4,2306.5,3.901]
[1769965392176,0.21693,2307.1,2306.5,3.901]
[1769965392373,0.21693,2307.1,2306.5,10.321]
[1769965393673,7.26915416,2307.7,2306.5,14.59188228]
[1769965393872,7.26915416,2307.7,2306.5,10.321]
[1769965394478,0.21691,2307.3,2306.6,4.27088228]
[1769965394774,7.48606416,2307.3,2306.6,9.383]
[1769965394980,0.21691,2307.3,2306.6,9.383]
[1769965395878,0.22001789,2307.8,2306.7,4.27813182]
[1769965396077,0.21687,2307.7,2306.7,4.27813182]
[1769965396272,7.48602416,2307.7,2306.7,4.27813182]
[1769965397382,0.21688,2307.6,2306.8,9.168]
[1769965398576,0.00314789,2307.8,2306.9,4.27337377]
[1769965399981,7.26915416,2308.5,2306.9,4.27337377]
[1769965400179,0.21679,2308.5,2306.9,4.27337377]
[1769965400376,0.37773433,2309.3,2306.9,4.27337377]
[1769965400571,0.21676,2308.8,2307.4,7.49794927]
[1769965401080,0.22217833,2308.8,2307.4,7.49794927]
[1769965401982,0.00541833,2308.8,2307.4,10.04179231]
[1769965402282,0.00541833,2308.8,2307.6,7.49794927]
[1769965402581,0.00541833,2308.8,2307.8,7.49794927]
[1769965402775,0.00541833,2308.8,2308.0,7.49794927]
[1769965402976,0.00541833,2308.8,2308.0,7.50100092]
[1769965403179,0.21674,2309.1,2308.0,7.50100092]
[1769965404177,0.22149491,2309.1,2308.0,7.50100092]
[1769965406883,0.21669,2309.6,2308.1,7.49794927]
[1769965407085,0.21669,2309.6,2308.2,7.49794927]
[1769965407286,7.26915416,2310.5,2308.2,7.71476927]
[1769965407483,0.21665,2310.1,2308.6,7.49794927]
[1769965407683,0.21665,2310.1,2308.8,7.49794927]
[1769965407985,0.22017467,2310.1,2309.2,7.49794927]
[1769965408583,0.21659,2310.7,2309.2,10.04179231]
[1769965408783,0.21659,2310.7,2309.3,7.49794927]
[1769965409284,0.21661,2310.5,2309.5,7.49794927]
[1769965409686,7.27075756,2310.5,2309.6,10.321]
[1769965410082,0.21664,2310.1,2309.3,7.49794927]
[1769965410291,0.0016034,2310.5,2309.5,7.49794927]
[1769965411890,6.42807452,2312.9,2310.4,7.49794927]
[1769965412095,0.21648,2311.8,2310.6,7.49794927]
[1769965412797,0.38587667,2312.6,2310.8,7.49794927]
[1769965412987,0.07531155,2313.1,2310.8,7.49794927]
[1769965413291,0.21636,2313.1,2311.1,7.49794927]
[1769965413491,0.3679318,2313.4,2310.6,0.00427453]
[1769965413492,0.21644,2312.3,2311.3,7.49794927]
[1769965413795,7.26915416,2313.2,2311.3,7.49794927]
[1769965413988,7.48553416,2312.9,2311.3,7.49794927]
[1769965414486,7.48553416,2312.9,2310.7,0.21658]
[1769965414487,7.26915416,2313.5,2311.7,7.49794927]
[1769965414794,0.21639,2312.8,2311.8,14.76094927]
[1769965414995,0.21639,2312.8,2312.0,7.49794927]
[1769965415593,6.442,2314.7,2312.0,7.49794927]
[1769965415594,7.26915416,2313.5,2312.0,7.49794927]
[1769965416187,7.26915416,2314.8,2312.0,7.49794927]
[1769965416392,7.26915416,2314.8,2310.6,2.54811757]
[1769965416393,7.48547416,2313.5,2312.1,7.49794927]
[1769965416596,7.48547416,2313.5,2312.3,7.49794927]
[1769965416796,7.26915416,2313.4,2312.3,7.50233065]
[1769965417393,7.25902377,2313.0,2312.3,0.00438138]
[1769965418286,7.25904377,2312.8,2312.3,1.38e-06]
[1769965418892,0.21639,2312.8,2312.3,1.38e-06]
[1769965419196,0.22061116,2312.8,2312.3,1.38e-06]
[1769965419994,7.26326493,2312.8,2312.3,1.38e-06]
[1769965420193,7.26326493,2312.8,2311.6,3.898]
[1769965420194,0.21644,2312.3,2311.6,3.898]
[1769965420393,7.25909377,2312.3,2311.3,6.91760798]
[1769965420699,0.21647,2311.9,2311.0,6.437]
[1769965420998,0.21647,2311.9,2311.0,13.35460798]
[1769965421197,0.21642,2312.5,2311.1,6.91760798]
[1769965421700,0.00422116,2312.8,2311.5,6.91760798]
[1769965421999,7.04687493,2312.8,2311.6,3.897]
[1769965422201,0.21642,2312.5,2311.7,3.893]
[1769965422395,0.21642,2312.5,2311.7,10.81060798]
[1769965422601,0.21643,2312.4,2311.6,3.897]
[1769965422901,0.21643,2312.4,2311.7,6.91760798]
[1769965423592,0.00422116,2312.8,2311.7,6.91760798]
[1769965423993,0.00422116,2312.8,2311.9,6.91760798]
[1769965424196,0.22062116,2312.8,2311.9,6.91760798]
[1769965424501,0.21644,2312.3,2311.4,2.539]
[1769965424695,0.21649,2311.7,2311.0,0.004144]
[1769965424898,7.10904668,2312.1,2311.0,0.004144]
[1769965425098,0.21654,2311.2,2310.6,3.897]
[1769965425299,0.21654,2311.2,2310.4,2.539]
[1769965425600,0.2166,2310.6,2309.8,6.506]
[1769965425996,0.22081722,2310.6,2309.8,6.51081822]
[1769965426302,7.10904668,2311.4,2309.8,6.51081822]
[1769965426497,0.21656,2311.0,2309.9,7.22288057]
[1769965426996,0.21657,2310.9,2309.9,7.22288057]
[1769965427301,0.22087816,2310.9,2309.9,7.22288057]
[1769965427492,7.11335484,2310.9,2309.9,7.22288057]
[1769965427697,0.2166,2310.5,2310.0,6.436]
[1769965428090,0.2166,2310.5,2309.8,0.00481822]
[1769965428297,0.2166,2310.5,2310.0,5.097]
[1769965428499,0.2166,2310.5,2309.8,0.00481822]
[1769965428799,0.2166,2310.5,2309.8,3.90181822]
[1769965429102,7.10904668,2310.2,2309.8,8.22e-06]
[1769965429301,0.21663,2310.3,2309.8,8.22e-06]
[1769965429896,7.11335484,2310.9,2309.8,8.22e-06]
[1769965431603,7.32992484,2310.9,2309.8,8.22e-06]
[1769965431903,0.21658,2310.8,2309.8,8.22e-06]
[1769965433999,0.21652,2311.4,2309.8,7.22288879]
[1769965434199,0.21647,2312.0,2310.0,7.22288057]
[1769965434402,0.21647,2312.0,2310.3,7.43950057]
[1769965434704,0.21647,2312.0,2310.5,7.22288057]
[1769965434905,0.2206438,2312.0,2310.5,7.22288057]
[1769965435099,0.21642,2312.5,2310.8,7.22288057]
[1769965435494,0.21642,2312.5,2310.8,7.43945057]
[1769965436406,0.21642,2312.5,2310.9,7.22288057]
[1769965437197,0.21642,2312.5,2311.1,7.22288057]
[1769965437402,0.21636,2313.1,2311.2,7.22288057]
[1769965437603,0.21636,2313.1,2311.4,7.22288057]
[1769965437799,7.10904668,2313.8,2311.8,7.22288057]
[1769965438004,0.21632,2313.6,2312.0,7.22288057]
[1769965438204,0.21633,2313.4,2312.0,7.22288057]
[1769965438399,0.21633,2313.4,2312.2,7.22288057]
[1769965438809,7.10904668,2313.8,2312.2,7.22288057]
[1769965439009,0.21638,2312.9,2312.3,6.436]
[1769965439207,0.21638,2312.9,2311.9,7.22288057]
[1769965439505,0.21638,2312.9,2312.4,9.315]
[1769965440107,7.71905522,2314.6,2312.5,7.22288057]
[1769965440108,0.21632,2313.5,2312.5,7.22288057]
[1769965441108,7.10904668,2313.7,2311.9,7.22288057]
[1769965441309,0.21636,2313.1,2312.1,7.22288057]
[1769965441809,7.10904668,2313.3,2312.1,7.22288057]
[1769965442009,0.21643,2312.4,2311.8,3.90143847]
[1769965442306,0.21645,2312.2,2311.8,8.47e-06]
[1769965442502,7.10904668,2312.2,2311.8,8.47e-06]
[1769965442702,7.10904668,2312.8,2311.8,8.47e-06]
[1769965443004,7.10904668,2313.1,2311.8,7.22288904]
[1769965443210,0.21643,2312.4,2311.8,8.47e-06]
[1769965443411,0.21647,2312.0,2310.8,2.54384304]
[1769965443612,0.21647,2312.0,2311.4,4.455]
[1769965443907,7.11332417,2312.4,2311.4,4.0083]
[1769965443908,0.21648,2311.9,2311.4,4.0083]
[1769965444511,0.21648,2311.9,2311.4,4.01283849]
[1769965444908,7.10904668,2312.3,2311.4,4.01283849]
[1769965445107,7.11332417,2312.4,2311.4,0.00453849]
[1769965445313,0.21646,2312.1,2311.5,2.539]
[1769965446806,0.21646,2312.1,2311.4,0.00453849]
[1769965448115,0.21646,2312.1,2311.4,7.44298937]
[1769965448617,0.00427749,2312.4,2311.4,7.44298937]
[1769965448915,0.00427749,2312.4,2311.6,7.43845088]
[1769965449114,7.25940953,2313.2,2311.6,7.43845088]
[1769965449715,0.21645,2312.2,2311.4,0.00453849]
[1769965450111,0.21824718,2312.2,2311.4,0.00453849]
[1769965450915,0.2164,2312.8,2311.4,7.44298937]
[1769965451512,7.25940953,2313.4,2311.6,7.43845088]
[1769965451513,7.47574953,2313.4,2311.6,7.43845088]
[1769965451717,7.47574953,2313.4,2311.8,7.43845088]
[1769965451718,0.21634,2313.4,2311.8,7.43845088]
[1769965452118,0.2163,2313.8,2312.1,7.43845088]
[1769965452319,0.2163,2313.8,2312.3,7.43845088]
[1769965452518,0.2163,2313.8,2312.5,7.43845088]
[1769965452714,7.25940953,2314.4,2312.5,7.43845088]
[1769965453117,0.2163,2313.8,2312.7,7.43845088]
[1769965453321,7.25940953,2314.1,2312.8,16.81745088]
[1769965453615,0.21632,2313.6,2312.9,12.92145088]
[1769965453820,7.25940953,2314.1,2313.0,7.43845088]
[1769965454019,0.21631,2313.7,2312.9,5.483]
[1769965454221,0.21636,2313.2,2311.8,2.54384304]
[1769965454411,0.21636,2313.1,2312.3,3.895]
[1769965454616,7.25940953,2313.4,2312.3,11.33345088]
[1769965454617,6.97576953,2313.4,2312.3,11.33345088]
[1769965454813,6.97576953,2313.4,2312.0,7.43845088]
[1769965455017,6.97576953,2313.4,2312.2,7.43845088]
[1769965455320,7.19209953,2313.4,2312.2,7.43845088]
[1769965455519,0.21633,2313.4,2312.2,7.43845088]
[1769965455818,0.21629,2313.9,2312.2,7.43845088]
[1769965456122,0.21631,2313.7,2312.2,7.43845088]
[1769965457116,0.21632,2313.6,2312.4,7.43845088]
[1769965457321,0.21632,2313.6,2312.6,7.43845088]
[1769965457725,0.21632,2313.5,2312.6,7.43845088]
[1769965458019,0.37505385,2314.8,2312.6,7.43845088]
[1769965458020,0.21633,2313.4,2312.7,8.924]
[1769965458826,0.21635,2313.3,2312.3,7.43845088]
[1769965459223,0.21635,2313.3,2312.4,14.42045088]
[1769965459524,7.25940953,2313.1,2311.6,2.51084788]
[1769965459823,0.21637,2313.1,2312.0,3.895]
[1769965460030,0.21639,2312.8,2312.0,3.895]
[1769965460425,0.21641,2312.6,2312.0,3.895]
[1769965460625,0.21641,2312.6,2311.4,0.00453849]
[1769965460626,0.21646,2312.0,2311.4,0.00453849]
[1769965460828,0.2165,2311.6,2311.4,8.49e-06]
[1769965461624,0.21653,2311.3,2309.9,2.51084788]
[1769965461934,7.25940953,2311.8,2310.0,6.749]
[1769965462231,0.2165,2311.6,2310.0,9.25984788]
[1769965462427,0.2165,2311.6,2310.1,2.51084788]
[1769965462622,0.22103849,2311.6,2310.1,2.51424089]
[1769965462826,0.00453849,2311.6,2310.1,2.51424089]
[1769965463023,7.26394802,2311.6,2310.2,11.024]
[1769965463734,7.26394802,2311.6,2310.3,7.43845088]
[1769965463926,0.00453849,2311.6,2310.3,7.43845088]
[1769965464128,0.00453849,2311.6,2310.4,7.43845088]
[1769965465324,0.00453849,2311.6,2310.4,11.77745088]
[1769965465529,0.21647,2312.0,2310.7,7.43845088]
[1769965465731,0.21647,2312.0,2310.8,2.51084788]
[1769965465922,0.21647,2312.0,2310.9,18.50645088]
[1769965466122,0.21647,2312.0,2311.0,7.43845088]
[1769965467329,7.71905522,2313.7,2311.0,7.43845088]
[1769965467330,0.21642,2312.5,2311.0,7.43845088]
[1769965467727,0.21642,2312.5,2311.1,7.43845088]
[1769965467928,0.21644,2312.3,2311.1,7.43845088]
[1769965468124,7.25940953,2312.5,2311.1,7.43845088]
[1769965468329,0.21646,2312.1,2311.1,7.43845088]
[1769965471530,7.25940953,2312.5,2311.1,7.43845088]
[1769965471832,7.25940953,2312.5,2310.9,11.068]
[1769965471833,0.2164,2312.7,2311.3,2.51084788]
[1769965472024,0.2164,2312.7,2311.3,7.43845088]
[1769965472230,0.21636,2313.1,2311.6,7.43845088]
[1769965472834,0.21636,2313.1,2311.6,9.94929876]
[1769965473032,0.21636,2313.1,2311.7,7.43845088]
[1769965473330,0.21636,2313.1,2311.5,2.51084788]
[1769965473331,0.21636,2313.1,2311.9,7.43845088]
[1769965473530,7.25940953,2313.4,2312.1,7.43845088]
[1769965473724,7.25940953,2313.2,2312.0,10.19645088]
[1769965473926,7.25940953,2313.2,2312.1,7.43845088]
[1769965474124,0.2164,2312.8,2312.1,7.43845088]
[1769965479335,6.42807452,2313.9,2312.1,7.43845088]
[1769965479545,7.24326857,2314.3,2312.5,9.95996127]
[1769965479841,9.4072373,2315.6,2312.6,7.43489765]
[1769965479842,0.21629,2313.9,2312.6,7.43489765]
[1769965480237,9.4072373,2315.9,2312.6,7.43489765]
[1769965480238,7.24326857,2313.8,2312.6,7.43489765]
[1769965480741,0.21636,2313.1,2312.3,3.895]
[1769965480939,0.21636,2313.1,2312.4,3.095]
[1769965481845,0.21632,2313.6,2312.5,7.43489765]
[1769965482039,0.21633,2313.5,2312.5,7.43489765]
[1769965482241,0.21638,2313.0,2312.2,7.43489765]
[1769965483345,0.21638,2313.0,2312.3,7.29]
[1769965483541,0.21638,2313.0,2312.3,11.184]
[1769965484247,0.21638,2313.0,2312.3,18.61889765]
[1769965485952,0.21632,2313.6,2312.4,7.08357189]
[1769965486950,0.21633,2313.5,2312.4,7.08357189]
[1769965487146,0.21633,2313.4,2312.4,7.08357189]
[1769965487346,0.21627,2314.1,2312.4,7.08357189]
[1769965487843,0.21628,2314.0,2312.4,7.08357189]
[1769965488244,0.21628,2314.0,2312.4,11.63899189]
[1769965488555,0.21628,2314.0,2312.9,7.08357189]
[1769965489346,0.21631,2313.7,2312.9,7.08357189]
[1769965489549,0.21632,2313.6,2312.9,14.73057189]
[1769965490256,0.21632,2313.6,2313.0,7.08357189]
[1769965491350,0.21632,2313.5,2312.8,3.894]
[1769965491750,0.21632,2313.5,2312.9,7.08357189]
[1769965491959,7.29510941,2314.3,2312.9,7.08357189]
[1769965492254,0.21628,2314.0,2312.9,7.08357189]
[1769965492456,0.21628,2314.0,2313.1,7.08357189]
[1769965493050,7.29510941,2314.9,2313.8,9.77558234]
[1769965493252,7.29510941,2314.4,2313.8,0.00402473]
[1769965493453,0.21626,2314.3,2313.8,0.00402473]
[1769965493659,0.21628,2314.0,2313.3,3.894]
[1769965493955,0.21628,2314.0,2313.3,9.412]
[1769965494153,7.29510941,2314.3,2313.3,16.49557189]
[1769965494551,7.29884718,2314.3,2313.3,16.49940992]
[1769965495052,0.21998777,2314.3,2313.4,7.08357189]
[1769965495253,0.21998777,2314.3,2313.6,7.08357189]
[1769965495553,7.29510941,2315.2,2313.6,7.08357189]
[1769965495859,7.51130941,2314.9,2313.7,17.73257189]
[1769965496062,0.2162,2314.9,2314.0,7.08357189]
[1769965496447,7.29510941,2315.2,2314.0,7.08357189]
[1769965496655,7.29510941,2315.5,2314.0,7.08357189]
[1769965496958,7.29510941,2315.5,2314.2,7.08357189]
[1769965497463,0.21612,2315.7,2314.4,7.08357189]
[1769965497760,0.21613,2315.6,2314.4,7.08357189]
[1769965498357,0.21613,2315.6,2314.8,7.08357189]
[1769965499156,0.21613,2315.6,2314.9,8.018]
[1769965500258,0.21617,2315.2,2314.4,6.024]
[1769965500458,0.21617,2315.2,2314.4,13.10757189]
[1769965500759,0.21621,2314.7,2313.9,7.08357189]
[1769965500959,7.29510941,2316.0,2314.4,2.69201045]
[1769965501162,6.42807452,2317.0,2314.9,7.08357189]
[1769965501457,0.10439759,2318.5,2316.6,2.69201045]
[1769965501667,0.47343601,2318.5,2316.8,7.08357189]
[1769965501958,0.47343601,2318.5,2316.8,6.64993189]
[1769965502151,7.21681516,2317.8,2316.6,0.00457149]
[1769965502353,7.21681516,2317.6,2315.1,2.51958718]
[1769965502570,0.21594,2317.6,2315.6,3.43278332]
[1769965502770,0.47343601,2318.5,2316.2,3.43278332]
[1769965502771,7.21681516,2318.4,2316.2,3.43278332]
[1769965503062,0.10439759,2318.5,2316.8,3.43278332]
[1769965503249,0.21582,2318.9,2317.5,7.54914838]
[1769965503457,0.00362675,2318.9,2317.6,13.97714838]
[1769965503652,0.21589,2318.1,2317.5,0.00380707]
[1769965503862,0.21594,2317.7,2316.8,3.891]
[1769965504059,0.21602,2316.8,2316.1,3.4484]
[1769965504258,0.21603,2316.7,2315.0,3.43278332]
[1769965504460,0.42598814,2317.2,2315.1,3.891]
[1769965504660,0.42598814,2316.6,2315.1,9.40022]
[1769965504960,0.42598814,2316.6,2313.8,3.76627182]
[1769965504961,0.21611,2315.9,2314.3,11.403]
[1769965505260,0.0040948,2316.6,2315.1,3.43278332]
[1769965505261,0.2201348,2316.6,2315.1,3.43278332]
[1769965505458,3.9661044,2319.1,2315.7,3.43278332]
[1769965505659,3.9661044,2319.1,2315.1,3.43278332]
[1769965505660,0.21597,2317.3,2315.9,7.54914838]
[1769965505860,0.21601,2316.9,2316.0,16.5022812]
[1769965506059,0.59517436,2317.4,2315.6,6.04]
[1769965506255,1.16675436,2316.9,2314.7,3.43278332]
[1769965506465,0.21609,2316.0,2314.7,0.00467879]
[1769965506761,0.21606,2316.3,2314.7,4.50422923]
[1769965506964,0.21606,2316.3,2314.7,3.43746211]
[1769965507261,0.21608,2316.2,2315.0,1.06676712]
[1769965507463,0.21608,2316.2,2314.8,6.647]
[1769965507764,0.21609,2316.0,2314.9,8.23176712]
[1769965507965,0.21609,2316.0,2314.9,7.165]
[1769965508163,0.2161,2315.9,2315.0,14.69080942]
[1769965508366,0.2161,2315.9,2315.1,7.36280942]
[1769965508562,0.2161,2315.9,2315.1,8.42957654]
[1769965508767,0.2161,2315.9,2315.2,1.06676712]
[1769965509263,0.2161,2315.9,2315.2,8.42957654]
[1769965509462,0.21229293,2315.9,2315.7,1.06676712]
[1769965509663,0.21607,2316.3,2315.7,0.53824712]
[1769965509967,0.21607,2316.3,2315.0,7.328]
[1769965510362,0.21607,2316.3,2315.4,0.53824712]
[1769965510665,0.00497116,2316.9,2314.7,0.00467879]
[1769965510666,0.21607,2316.2,2315.3,7.796]
[1769965510865,0.22098116,2316.9,2315.5,0.53824712]
[1769965511066,0.22098116,2316.9,2315.8,0.53824712]
[1769965511266,0.22098116,2316.9,2316.1,0.53824712]